Cogmind - Beta 12 @@@ ROGUE MODE // 2023.03.14 @ 15:18:37 Player: Peregrine Result: Self-destructed Performance ------------- Evolutions (3) 1500 Regions Visited (5) 1000 Robots Destroyed (25) 125 Value Destroyed (426) 426 Prototype IDs (5) 100 Alien Tech Used (0) 0 Bonus (500) 500 TOTAL SCORE: 3651 Bonus ------- Entered DSFs 500 Cogmind --------- Core Integrity 131/700 Matter 15/300 Energy 14/100 System Corruption 1% Temperature Cool (0) Movement Core (50) Location -7/DSF Parts ------- > --- POWER (2) -------- (None) > --- PROPULSION (5) --- (None) > --- UTILITY (4) ------ (None) > --- WEAPON (2) ------- (None) > --- INVENTORY (5) ---- Airjet Advanced Weight Redist. System Remote Datajack Peak State ------------ > --- POWER ------------ Light Fission Core > --- PROPULSION ------- Improved Flight Unit Improved Flight Unit Surge Thruster Surge Thruster Improved VTOL Module > --- UTILITY ---------- Medium Storage Unit Advanced Weight Redist. System Improved Terrain Scan Processor Reaction Control System > --- WEAPON ----------- Autogun Blade Saw > --- INVENTORY -------- Light Fission Core Airjet Airjet Airjet Improved Flight Unit Surge Thruster Advanced Weight Redist. System Structural Scanner Authchip [R/Combat] Remote Datajack [Rating: 39] Favorites ----------- Power Ion Engine Engine Ion Engine Power Core Light Fission Core Propulsion Compact Wheel Leg Aluminum Leg Wheel Compact Wheel Hover Unit Airjet Flight Unit Improved Flight Unit Utility Small Storage Unit Device Structural Scanner Storage Small Storage Unit Processor Improved Terrain Scan Processor Protection Hardened Light Armor Plating Weapon Small Laser Energy Gun Small Laser Ballistic Gun Autogun Ballistic Cannon Improved Light Cannon Special Weapon Plasma Cutter Slashing Weapon Blade Saw Build | -11 -10 -9 -8 -7 -7 ------- Run | Jun Mat Mat Mat Fac DSF Slots Evolved 6 | . . 2 2 2 . Power 1 | . . . 1 . . Propulsion 3 | . . 2 1 . . Utility 2 | . . . . 2 . Weapon . | . . . . . . Parts Attached 64 | 12 5 16 11 1 19 Power 8 | 1 2 1 2 . 2 Engine 6 | 1 2 1 2 . . Core 2 | . . . . . 2 Reactor . | . . . . . . Propulsion 31 | 4 2 10 6 . 9 Treads . | . . . . . . Leg 1 | . 1 . . . . Wheel 10 | 4 1 5 . . . Hover 8 | . . 5 1 . 2 Flight 12 | . . . 5 . 7 Utility 15 | 5 1 3 1 1 4 Device 10 | 3 1 2 1 1 2 Storage 3 | 2 . . . . 1 Processor 1 | . . . . . 1 Hackware . | . . . . . . Protection 1 | . . 1 . . . Artifact . | . . . . . . Weapon 10 | 2 . 2 2 . 4 Energy Gun 4 | 2 . . 1 . 1 Energy Cannon . | . . . . . . Ballistic Gun 1 | . . 1 . . . Ballistic Cannon 1 | . . . 1 . . Launcher . | . . . . . . Special Weapon 2 | . . 1 . . 1 Impact Weapon . | . . . . . . Slashing Weapon 2 | . . . . . 2 Piercing Weapon . | . . . . . . Special Melee Weapon . | . . . . . . Unidentified Prototypes 5 | . . . 5 . . Parts Lost 24 | . 3 5 1 . 15 Power 4 | . . 1 . . 3 Propulsion 13 | . 1 3 1 . 8 Utility 3 | . . . . . 3 Weapon 4 | . 2 1 . . 1 Highest Loss Streak 13 | . 3 4 1 . 13 To Critical Strikes . | . . . . . . Average Slot Usage (%) 76 | . 76 69 87 88 78 Engine 9 | . 14 8 9 15 4 Wheel 14 | . 18 27 . . . Hover 5 | . . 7 24 . . Flight 10 | . . . 18 38 34 Device 9 | . 13 6 . 11 12 Storage 11 | . 14 11 9 7 7 Processor 1 | . . . . . 5 Protection 2 | . . 4 8 . . Energy Gun 6 | . 14 . 4 7 1 Ballistic Gun 2 | . . . 9 7 5 Special Weapon 1 | . . 5 . . . Naked Turns 1 | . . . . . 1 Heaviest Build 29 | 14 14 18 22 19 29 Greatest Support 64 | 32 32 64 40 34 34 Greatest Overweight (x) 1 | 1 1 . . . 1 Average Overweight (x) . | . . . . . . Largest Inventory Capacity 10 | 8 8 8 8 8 10 Average Capacity 8 | 6 8 8 8 8 9 Most Carried 10 | 3 4 5 8 7 10 Average Carried 2 | . 1 1 4 6 7 Final Capacity 8 | 8 8 8 8 8 5 Final Carried 7 | 2 1 2 7 6 3 Class Distribution -------------------- 77% | Mutant 16% | Sprinter 5% | Scavenger-Sprinter Dominant Class ---------------- Mutant | -10/Materials Mutant | -9/Materials Sprinter | -8/Materials Sprinter | -7/Factory Sprinter | -7/DSF Resources | -11 -10 -9 -8 -7 -7 ----------- Run | Jun Mat Mat Mat Fac DSF Matter Collected 603 | 310 60 70 118 . 45 Remotely . | . . . . . . Salvage Created 753 | 223 207 70 163 . 90 Parts 50 | 15 13 3 9 . 10 Haulers Intercepted 2 | . . . 2 . . Recyclers Shooed 1 | . 1 . . . . Parts Field Recycled . | . . . . . . Retrieved Matter . | . . . . . . Parts Self-Destructed . | . . . . . . Prevented . | . . . . . . Kills | -11 -10 -9 -8 -7 -7 ------- Run | Jun Mat Mat Mat Fac DSF Combat Hostiles Destroyed 11 | . 3 2 1 . 5 Melee 4 | . . 1 . . 3 Guns 6 | . 2 1 1 . 2 AOE 1 | . 1 . . . . Classes Destroyed 8 | 3 3 . 1 . 1 Worker 2 | 1 1 . . . . Builder 2 | . 2 . . . . Tunneler 4 | 4 . . . . . Hauler 2 | . . . 2 . . Recycler 2 | 1 1 . . . . Operator 2 | . 1 . 1 . . Cutter 5 | . . . . . 5 Grunt 6 | . 3 2 1 . . Best Kill Streak 6 | 5 6 1 2 . 2 Combat Bots Only 2 | . 2 1 1 . 2 Max Kills in Single Turn 5 | 1 5 1 1 . 1 Gunslinging . | . . . . . . Exploded 1 | . 1 . . . . Melee 1 | . . 1 . . 1 Uniques/NPCs Destroyed . | . . . . . . Combat | -11 -10 -9 -8 -7 -7 -------- Run | Jun Mat Mat Mat Fac DSF Damage Taken 2540 | . 423 595 208 . 1314 Core 1039 | . 230 183 57 . 569 Absorbed by Shields . | . . . . . . Regen/Repaired (Parts) 7 | . 7 . . . . Core Remaining (%) 62 | 100 8 54 89 . . Volleys Fired 62 | 12 17 3 14 1 15 Largest 2 | 2 2 1 2 2 2 Hottest 84 | 80 80 23 84 84 84 Shots Fired 109 | 24 34 3 28 2 18 Gun 105 | 24 34 3 24 2 18 Cannon 4 | . . . 4 . . Launcher . | . . . . . . Special . | . . . . . . Kinetic 37 | . . 3 18 1 15 Thermal 43 | 12 17 . 10 1 3 Explosive . | . . . . . . Electromagnetic 29 | 12 17 . . . . Robot Hit Streak 11 | 5 6 6 11 . 3 Robot Miss Streak 3 | 2 3 1 1 . 2 Penetration Max . | . . . . . . Secondary Targets . | . . . . . . Shots Hit Robots 79 | 13 23 2 23 . 18 Core Hits 40 | 7 13 4 6 . 10 Critical Kills . | . . . . . . Critical Parts Destroyed . | . . . . . . Critical Strikes 5 | . . . 2 . 3 Burn 2 | . . . 2 . . Sever 3 | . . . . . 3 Melee Attacks 13 | . . . . . 13 Impact . | . . . . . . Slashing 13 | . . . . . 13 Piercing . | . . . . . . Sneak Attacks . | . . . . . . Combat Hostiles . | . . . . . . Follow-up Attacks . | . . . . . . Damage Inflicted 1907 | 151 1006 48 386 . 316 Guns 972 | 151 286 32 349 . 154 Cannons 37 | . . . 37 . . Explosions 720 | . 720 . . . . Melee 162 | . . . . . 162 Ramming 16 | . . 16 . . . Kinetic 371 | . . 32 218 . 121 Thermal 1172 | 87 884 . 168 . 33 Explosive . | . . . . . . Electromagnetic 186 | 64 122 . . . . Impact . | . . . . . . Slashing 162 | . . . . . 162 Piercing . | . . . . . . Highest Corruption 1 | . . . . . 1 Average Corruption 1 | . . . . . 1 Corruption Purged . | . . . . . . Corruption Blocked . | . . . . . . Overload Shots . | . . . . . . Overflow Damage 266 | . 266 . . . . Projectiles . | . . . . . . Explosions 266 | . 266 . . . . Melee . | . . . . . . Knockbacks . | . . . . . . Impact . | . . . . . . Kinetic . | . . . . . . Secondary . | . . . . . . Self-Inflicted Damage 226 | . 218 8 . . . Shots 3 | . 3 . . . . Rammed 4 | . . 4 . . . Targets Rammed 4 | . . 4 . . . Kicked . | . . . . . . Crushed . | . . . . . . Highest Temperature 349 | 54 237 25 349 46 4 Average Temperature 84 | 26 71 8 155 16 3 Received Heat Transfer 669 | . 135 318 99 . 117 Effects 1 | . . . 1 . . Shutdowns 1 | . . . 1 . . Siege Activations . | . . . . . . Robots Corrupted . | . . . . . . Combat Hostiles . | . . . . . . Parts Fried . | . . . . . . Impact Corruptions . | . . . . . . Robots Melted . | . . . . . . Combat Hostiles . | . . . . . . Parts Melted 2 | . . . 2 . . Heat Transferred 1817 | 200 1025 . 518 . 74 Parts Sabotaged . | . . . . . . Parts Stolen . | . . . . . . Parts Stripped . | . . . . . . Power Chain Reactions 1 | . 1 . . . . Missiles Intercepted . | . . . . . . Alert | -11 -10 -9 -8 -7 -7 ------- Run | Jun Mat Mat Mat Fac DSF Peak Influence 199 | 30 186 168 199 95 191 Initial 90 | . 19 78 70 90 66 Average 95 | 16 92 109 122 90 120 Maximum Alert Level . | . . . . . . Low Security (%) 100 | 100 100 100 100 100 100 Level 1 . | . . . . . . Level 2 . | . . . . . . Level 3 . | . . . . . . Level 4 . | . . . . . . Level 5 . | . . . . . . High Security . | . . . . . . Max Security . | . . . . . . Squads Dispatched 8 | . 1 4 . . 3 Investigation 3 | . . 3 . . . Extermination . | . . . . . . Reinforcement 5 | . 1 1 . . 3 Assault . | . . . . . . Garrison . | . . . . . . Intercept . | . . . . . . Searches Triggered . | . . . . . . Construction Impeded . | . . . . . . Haulers Reinforced . | . . . . . . Active Scanning Responses . | . . . . . . Cargo Convoy Interrupts . | . . . . . . Stealth | -11 -10 -9 -8 -7 -7 --------- Run | Jun Mat Mat Mat Fac DSF Distress Signals 3 | . 1 2 . . . Communications Jammed . | . . . . . . Distress Signals . | . . . . . . Times Spotted 46 | . 11 14 7 . 14 Peak Tracking Total 9 | . 3 8 4 . 9 Tactical Retreats 6 | . 2 1 1 . 2 Traps | -11 -10 -9 -8 -7 -7 ------- Run | Jun Mat Mat Mat Fac DSF Traps Triggered 5 | . . 2 . . 3 Indirectly . | . . . . . . Trap Hack Attempts . | . . . . . . Triggered . | . . . . . . Disarmed . | . . . . . . Reprogrammed . | . . . . . . Reused . | . . . . . . Traps Extracted . | . . . . . . Installed . | . . . . . . Triggered . | . . . . . . Machines | -11 -10 -9 -8 -7 -7 ---------- Run | Jun Mat Mat Mat Fac DSF Machines Disabled 2 | . 2 . . . . Max in Single Turn 2 | . 2 . . . . Machines Repaired . | . . . . . . Machines Sabotaged . | . . . . . . Overloaded Fab Kills . | . . . . . . Hacking | -11 -10 -9 -8 -7 -7 --------- Run | Jun Mat Mat Mat Fac DSF Machines Accessed 9 | . 5 2 1 1 . Terminals 7 | . 3 2 1 1 . Fabricators . | . . . . . . Repair Stations 1 | . 1 . . . . Recycling Units 1 | . 1 . . . . Scanalyzers . | . . . . . . Garrison Access . | . . . . . . Total Hacks 25 | . 17 5 2 1 . Successful 14 | . 13 . . 1 . Failed 11 | . 4 5 2 . . Catastrophic 3 | . . 2 1 . . Database Lockouts . | . . . . . . Manual 13 | . 6 5 2 . . Terminals 20 | . 12 5 2 1 . Fabricators . | . . . . . . Repair Stations 3 | . 3 . . . . Recycling Units 2 | . 2 . . . . Scanalyzers . | . . . . . . Garrison Access . | . . . . . . Terminal Hacks 6 | . 5 . . 1 . Record 2 | . 2 . . . . Robot Analysis 1 | . 1 . . . . Open DSF 1 | . . . . 1 . Unreport Threat 2 | . 2 . . . . Fabricator Hacks . | . . . . . . Repair Station Hacks 2 | . 2 . . . . Scan Component 1 | . 1 . . . . Repair 1 | . 1 . . . . Recycling Unit Hacks 1 | . 1 . . . . Retrieve Components 1 | . 1 . . . . Scanalyzer . | . . . . . . Garrison Access Hacks . | . . . . . . Unauthorized Hacks 5 | . 5 . . . . Terminals 3 | . 3 . . . . Assimilate 1 | . 1 . . . . Botnet 2 | . 2 . . . . Fabricators . | . . . . . . Repair Stations 1 | . 1 . . . . Mechanics 1 | . 1 . . . . Recycling Units 1 | . 1 . . . . Monitor 1 | . 1 . . . . Scanalyzers . | . . . . . . Garrison Access . | . . . . . . Data Cores Recovered 1 | . . . 1 . . Used 1 | . . . 1 . . Hacking Detections 8 | . 5 2 1 . . Full Trace Events 2 | . 1 1 . . . Feedback Events . | . . . . . . Feedback Blocked . | . . . . . . Robot Schematics Acquired . | . . . . . . Robots Built . | . . . . . . Authchips . | . . . . . . Time . | . . . . . . Total Robot Build Rating . | . . . . . . Part Schematics Acquired . | . . . . . . Parts Built . | . . . . . . Authchips . | . . . . . . Time . | . . . . . . Total Part Build Rating . | . . . . . . Parts Repaired 1 | . 1 . . . . Time 26 | . 26 . . . . Parts Recycled . | . . . . . . Recycled Matter . | . . . . . . Retrieved Matter . | . . . . . . Retrieved Components . | . . . . . . Parts Scanalyzed . | . . . . . . Part Schematics Acquired . | . . . . . . Parts Damaged . | . . . . . . Bothacking | -11 -10 -9 -8 -7 -7 ------------ Run | Jun Mat Mat Mat Fac DSF Used RIF Installer . | . . . . . . Robots Hacked . | . . . . . . Non-combat . | . . . . . . Combat . | . . . . . . Robot Hacks Applied . | . . . . . . Relay Couplers Released . | . . . . . . Fabnet Peak Effective % . | . . . . . . Robots Rewired . | . . . . . . Allies Hacked . | . . . . . . Hacks Repelled . | . . . . . . Allies | -11 -10 -9 -8 -7 -7 -------- Run | Jun Mat Mat Mat Fac DSF Total Allies . | . . . . . . Largest Group . | . . . . . . Highest-Rated Group . | . . . . . . Highest-Rated Ally . | . . . . . . Total Orders . | . . . . . . Ally Attacks . | . . . . . . Total Damage . | . . . . . . Kills . | . . . . . . Allies Corrupted . | . . . . . . Allies Melted . | . . . . . . Intel | -11 -10 -9 -8 -7 -7 ------- Run | Jun Mat Mat Mat Fac DSF Robot Analysis Total 1 | . 1 . . . . Derelict Logs Recovered . | . . . . . . Drone Launches . | . . . . . . Drone Recoveries . | . . . . . . Exploration | -11 -10 -9 -8 -7 -7 ------------- Run | Jun Mat Mat Mat Fac DSF Turns Passed 1138 | 144 377 262 130 16 209 Spaces Moved 962 | 64 272 235 154 43 194 Core 7 | 7 . . . . . Treads . | . . . . . . Legs 4 | . 4 . . . . Wheels 516 | 57 268 191 . . . Hover 145 | . . 44 93 . 8 Flight 290 | . . . 61 43 186 Fastest Speed 18 | 50 100 48 27 27 18 Average Speed 69 | 88 101 90 38 27 27 Slowest Speed 190 | 100 190 100 52 27 120 Overloaded Moves 34 | . . . . . 34 Propulsion Burnouts 1 | . . . . . 1 Robots Hopped 3 | . . . 2 . 1 Cave-ins Triggered . | . . . . . . Exploration Rate (%) 33 | 3 49 29 23 1 95 Regions Visited 5 Branch Regions . Pre-discovered Areas . | . . . . . . Known Exits Taken 1 | . . . . 1 . Unknown Exits Taken 4 | 1 1 1 1 . . Scrap Searched . | . . . . . . Spaces Dug . | . . . . . . Terrain Destroyed 41 | . 41 . . . . Melee . | . . . . . . Projectile . | . . . . . . AOE 41 | . 41 . . . . Terrain Rammed . | . . . . . . Walls Destroyed . | . . . . . . Machines Disabled . | . . . . . . Actions | -11 -10 -9 -8 -7 -7 --------- Run | Jun Mat Mat Mat Fac DSF Total 1294 | 127 341 280 195 44 307 Wait 103 | 24 34 5 3 . 37 Move 951 | 63 271 234 149 42 192 Hop 3 | . . . 2 . 1 Pick Up 60 | 12 7 14 12 . 15 Fast Attach . | . . . . . . Attach 44 | 9 3 12 6 1 13 Detach 1 | 1 . . . . . Swap 21 | 3 2 4 6 . 6 Drop 24 | 3 7 4 3 . 7 Fire 62 | 12 17 3 14 1 15 Melee 13 | . . . . . 13 Ram 4 | . . 4 . . . Kick . | . . . . . . Crush . | . . . . . . Escape Stasis 8 | . . . . . 8 Rewire . | . . . . . . Trap . | . . . . . . Miscellaneous . | . . . . . . Route ------- -11/Junkyard -10/Materials -9/Materials -8/Materials -7/Factory -7/DSF (discovered 1 exit: [*Fac]) History --------- Turn | Location | Event 14 | -11/Junkyard | Discovered new exit (range 16) 145 | -11/Junkyard | Entered Materials 195 | -10/Materials | Repaired Com. Wheel 302 | -10/Materials | Build established: Mutant 334 | -10/Materials | Core integrity fell below 50% 334 | -10/Materials | Core integrity fell below 20% 364 | -10/Materials | Lost 3 parts (1n2w) 505 | -10/Materials | Discovered new exit (range 16) 522 | -10/Materials | Entered another Materials area 522 | -9/Materials | Evolved 2 slots: Propulsion x2 726 | -9/Materials | Lost 4 parts (1p2n1w) 782 | -9/Materials | Discovered new exit (range 5) 784 | -9/Materials | Entered another Materials area 784 | -8/Materials | Evolved 2 slots: Power x1, Propulsion x1 909 | -8/Materials | Discovered new exit (range 11) 914 | -8/Materials | Entered Factory 914 | -7/Factory | Evolved 2 slots: Utility x2 929 | -7/Factory | Identified exit to DSF 930 | -7/Factory | Entered DSF 947 | -7/DSF | Additional patrols routed to DSF 962 | -7/DSF | Discovered new exit (range 14) 1128 | -7/DSF | Core integrity fell below 50% 1139 | -7/DSF | Core integrity fell below 20% 1139 | -7/DSF | Self-destructed Last Messages --------------- 01115_ Imp. VTOL Module severed. 01116_ C-17 Slicer Lgt. Nuclear Core severed. 01118_ Surge Thruster severed. 01121_ Imp. Flight Unit destroyed. 01121_ Surge Thruster destroyed. 01122_ C-17 Slicer Surge Thruster severed. 01124_ Blade Saw severed. 01130_ Airjet severed. 01131_ Structural Scanner destroyed. 01131_ Knocked back. 01132_ Dropped Med. Storage Unit. 01136_ X-62 Marksman springs to life. 01136_ Matter Repository disabled. 01136_ Acquired 7 matter. 01136_ Lgt. Fission Core destroyed. 01138_ C-30 ARC bursts open, deploying its payload. 01138_ H-55 Commando unfolds itself. 01138_ Airjet destroyed. 01138_ C-17 Slicer destroyed. 01138_ Penetrated by Slug. Map ----- +----------------------------------------------------+ | | | | | | | | | | | | | | | | | | | | | | | | | | | | | | | ??????????????????????????????????? | | ??????????????????????????????????? | | ??????????????????????????????????? | | ?????????####?????????????????????? | | ?????????""##????????????###??????? | | ?????#####"###?????###########????? | | ?????#####"##############"######### | | ?????##"""""######### !!! ####### | | ??#####"%""%##==#===# !!! # #]] | | ??##"##""%% %%= gxg% ^ | | ??##""""" @c !=!Hb | | ??#####""% x##==#====## ###]]]#]] | | ???###### ###==#===### "##]] #]] | | ?????#### ##########[[% !!##?#### | | ??????##= ==########[[%! !!#??#### | | ??????##= ==##?????#[[! !!#?????# | | ??????### ####?????##"* "##?????# | | ??????## ##?????#** !!#?????# | | ??????## h ##?????#** !!#?????# | | ?????### % #####??#** !!####### | | ?????#### #######?#### ######### | | ?????## ##!!!# ?!### ### *# | | ?????## ##!!!#!!!##%! ##***# | | ?????##// != | | ?????##// | | ?????##// | | ?????## ## #!!!## ## !!#!! | | ?????## ## #!!!### ###!!!#!! | | ?????#### ############ ######### | | ?????### !!#####?##!! !!##?#### | | ??????##! !!##????##!! !!##????# | | ??????##! !##????## ! !!##????# | | ??????### ####????#### ####????# | | ??????## !!##????##!! ##????# | | ??????## !!########!! = ####### | +----------------------------------------------------+ Best States ------------- Heat Dissipation 34 Energy Generation 18 Energy Capacity 275 Matter Stores 300 Matter Capacity 300 Sight Range 16 Terrain Scan Range 16 Terrain Scan Density 110 Additional Mass Support 9 Armor Coverage 150 Evasion (%) 66 Authchip Count 1 Item Schematics ----------------- None Robot Schematics ------------------ None Fabricated ------------ Nothing Alien Tech Used ----------------- None Achievements -------------- Dynamic Key Challenges ------------ None Game ------ Seed LobotomySignalLog Manual? 0 Play Time 00:35:47 Cumulative 41.3 hours Start 2023.03.14 @ 14:43:30 End 2023.03.14 @ 15:18:37 Sessions 1 Manual Loads 0 Difficulty Rogue Special Mode None Game No. 60 Rogue 59 Adventurer 1 Explorer 0 Win Type - Total 0 Types 0/0/0/0/0/0/0/0/0 Lore% 19 Gallery% 35 Achievement% 26 Wizard Run 0 Options --------- ASCII 0 Keyboard 0 Movement Mouse Keybinds 0 Fullscreen 1 Font 36/Smallcaps Map View 76x50 Tactical HUD 1 Map Filters NONE Filters NONE Steam 1 RUN: 2145fddc-9fcb-47cc-b54d-2bf6e317eb3c